bitfinex-derivatives/quotes_ETHF0:USTF0_20250620
["timestamp","ask_amount","ask_price","bid_price","bid_amount"]
[1750404224967,1.3082,2536.6,2536.3,0.78845]
[1750404225181,0.78844,2536.4,2536.3,0.78845]
[1750404225467,0.6237,2536.7,2536.1,5.17913]
[1750404225667,31.703,2536.6,2536.4,3.2078]
[1750404225879,32.49138,2536.6,2536.5,0.78841]
[1750404226067,0.78838,2536.6,2536.5,0.78841]
[1750404226267,32.48938,2536.6,2536.5,0.78841]
[1750404226572,32.48838,2536.6,2536.5,0.78841]
[1750404226877,0.06933781,2536.8,2536.7,0.78835]
[1750404227173,31.76433781,2536.8,2536.7,3.99615]
[1750404227378,32.55265781,2536.8,2536.7,3.99615]
[1750404227567,31.76433781,2536.8,2536.7,3.99615]
[1750404228068,0.06933781,2536.8,2536.7,5.31055]
[1750404228271,31.76333781,2536.8,2536.7,5.31055]
[1750404228880,32.54465781,2536.8,2536.7,5.31055]
[1750404229173,31.75633781,2536.8,2536.7,5.31055]
[1750404229375,31.75633781,2536.8,2536.7,7.32762771]
[1750404229576,3.2078,2537.1,2537.0,0.78826]
[1750404229878,31.671,2537.1,2537.0,0.78826]
[1750404230173,0.7883,2536.9,2536.8,0.78828]
[1750404230365,25.6943,2536.9,2536.8,2.80535771]
[1750404231069,25.6943,2536.9,2536.8,2.01707771]
[1750404231276,0.78832,2536.8,2536.7,0.78833]
[1750404232067,0.78832,2536.8,2536.6,0.671]
[1750404232068,26.87676,2536.9,2536.4,3.2078]
[1750404232270,26.87676,2536.9,2536.4,3.99622]
[1750404232271,0.78841,2536.5,2536.4,3.99622]
[1750404232479,32.45041,2536.5,2536.4,3.99622]
[1750404232686,31.662,2536.5,2536.4,3.99622]
[1750404232877,0.6274,2536.6,2536.5,0.78841]
[1750404233079,33.07478,2536.6,2536.5,0.78841]
[1750404233271,1.41578,2536.6,2536.5,0.78841]
[1750404233474,31.653,2536.6,2536.5,2.80548771]
[1750404233664,31.653,2536.6,2536.5,4.09108771]
[1750404234072,31.655,2536.6,2536.5,3.30267771]
[1750404234270,31.655,2536.6,2536.5,4.09108771]
[1750404234471,1.4157,2537.0,2536.6,1.97091]
[1750404234670,0.6274,2537.0,2536.9,0.78829]
[1750404234978,33.06266,2537.0,2536.9,0.78829]
[1750404236072,32.2744,2537.0,2536.9,0.78829]
[1750404236275,33.06266,2537.0,2536.9,0.78829]
[1750404236874,8.18266,2537.0,2536.9,0.78829]
[1750404237074,33.04266,2537.0,2536.9,0.78829]
[1750404237475,34.00104547,2537.0,2536.9,0.78829]
[1750404237782,0.78829,2536.9,2536.8,3.2078]
[1750404238481,0.78829,2536.9,2536.8,3.99612]
[1750404239483,33.04268,2537.0,2536.9,0.78828]
[1750404239784,0.78828,2536.9,2536.8,3.9961]
[1750404240083,1.74788101,2536.9,2536.8,3.9961]
[1750404241078,0.95960101,2536.9,2536.8,3.9961]
[1750404241284,6.767,2536.9,2536.8,6.01317771]
[1750404241580,52.94516,2537.3,2537.2,0.78819]
[1750404241782,53.90502898,2537.3,2537.2,2.01707771]
[1750404242082,0.78825,2537.0,2536.9,0.78825]
[1750404242286,24.829,2537.0,2536.9,2.80532771]
[1750404242479,24.85525651,2537.0,2536.9,2.80532771]
[1750404242679,24.85525651,2537.0,2536.9,4.18192771]
[1750404242885,0.02625651,2537.0,2536.9,4.18192771]
[1750404243085,24.86525651,2537.0,2536.9,4.18192771]
[1750404244780,24.93459432,2537.0,2536.9,4.18192771]
[1750404246490,24.90559432,2537.0,2536.9,4.18192771]
[1750404247779,25.69384432,2537.0,2536.9,4.18192771]
[1750404248188,24.90559432,2537.0,2536.9,4.18192771]
[1750404248385,0.09559432,2537.0,2536.9,4.18192771]
[1750404248586,45.39,2537.3,2537.2,0.78819]
[1750404248888,52.049,2537.3,2537.2,6.01306771]
[1750404249088,76.831,2537.3,2537.2,6.01306771]
[1750404249280,77.61916,2537.3,2537.2,3.99599]
[1750404249479,76.831,2537.3,2537.2,6.01306771]
[1750404250188,77.61916,2537.3,2537.1,0.6785]
[1750404250377,0.78825,2537.1,2537.0,0.78825]
[1750404250691,25.55725,2537.1,2537.0,0.78825]
[1750404251482,0.6718,2537.2,2537.1,0.78822]
[1750404251790,26.22901,2537.2,2537.1,2.80529771]
[1750404251988,26.22901,2537.2,2537.1,0.78822]
[1750404253790,0.78825,2537.1,2537.0,0.78823]
[1750404254090,0.78825,2537.1,2537.0,2.80530771]
[1750404254393,0.78825,2537.1,2537.0,0.78823]
[1750404255985,0.78825,2537.0,2536.9,3.99607]
[1750404256186,25.52525,2537.0,2536.9,3.99607]
[1750404256891,0.78825,2537.0,2536.9,3.99607]
[1750404257084,32.17625,2537.0,2536.9,3.99607]
[1750404257487,32.17625,2537.0,2536.9,3.99608]
[1750404257890,32.17625,2537.0,2536.9,3.2078]
[1750404258089,32.17625,2537.0,2536.9,3.99608]
[1750404258289,32.17625,2537.0,2536.9,3.2078]
[1750404258485,32.17625,2537.0,2536.6,2.29796964]
[1750404258486,31.388,2537.0,2536.6,2.29796964]
[1750404258686,31.388,2537.0,2536.5,3.2078]
[1750404258687,0.78838,2536.6,2536.5,3.2078]
[1750404258891,32.16238,2536.6,2536.5,3.2078]
[1750404259493,33.54048,2536.6,2536.5,3.2078]
[1750404259687,32.16238,2536.6,2536.5,3.2078]
[1750404259990,0.6529,2536.7,2536.6,0.78838]
[1750404260192,0.78828,2537.0,2536.9,0.78824]
[1750404260499,32.17928,2537.0,2536.9,2.01707771]
[1750404260794,0.78832,2536.8,2536.7,0.78832]
[1750404260996,0.78838,2536.6,2536.5,3.9962]
[1750404261190,32.18438,2536.6,2536.5,3.2078]
[1750404262086,33.49948,2536.6,2536.5,3.2078]
[1750404262995,0.7885,2536.2,2536.1,3.2078]
[1750404263297,32.1835,2536.2,2536.1,5.22487771]
[1750404263492,32.1835,2536.2,2536.1,3.2078]
[1750404264199,32.8672,2536.2,2536.1,3.2078]
[1750404265397,32.8672,2536.2,2536.1,3.99633]
[1750404265796,32.8672,2536.2,2536.1,3.2078]
[1750404266101,33.83117787,2536.2,2536.1,3.2078]
[1750404266603,1.4722,2536.2,2536.1,3.2078]
[1750404266796,32.8442,2536.2,2536.1,3.2078]
[1750404267603,32.8442,2536.2,2536.1,3.99633]
[1750404267803,32.8442,2536.2,2536.1,3.2078]
[1750404268500,32.8442,2536.2,2536.1,3.99633]
[1750404268501,1.4722,2536.2,2536.1,3.99633]
[1750404268700,32.8402,2536.2,2536.1,3.99633]
[1750404268902,32.8352,2536.2,2536.1,3.99633]
[1750404269409,32.8322,2536.2,2536.1,3.99633]
[1750404269609,32.0437,2536.2,2536.1,3.99633]
[1750404269810,11.64171336,2536.7,2536.1,7.19617771]
[1750404269811,5.17868,2536.7,2536.1,7.19617771]
[1750404270008,6.661,2536.4,2536.3,0.78847]
[1750404270502,6.661,2536.4,2536.3,2.80554771]
[1750404270707,8.45393336,2537.1,2536.3,8.26567771]
[1750404270708,1.46044,2537.1,2536.3,8.26567771]
[1750404270898,0.78822,2537.1,2537.0,3.99605]
[1750404271097,32.19622,2537.1,2537.0,3.2078]
[1750404271298,31.408,2537.1,2537.0,3.99603]
[1750404271499,31.407,2537.1,2537.0,3.99603]
[1750404272701,45.39,2537.3,2537.2,0.78819]
[1750404272894,76.782,2537.3,2537.2,2.80526771]
[1750404273094,76.782,2537.3,2537.2,0.78819]
[1750404273295,45.39,2537.3,2537.2,0.78819]
[1750404273506,76.785,2537.3,2537.2,0.78819]
[1750404274310,77.57316,2537.3,2537.2,0.78819]
[1750404275003,46.17816,2537.3,2537.2,0.78819]
[1750404275209,0.78819,2537.2,2537.1,2.0386]
[1750404275412,0.78819,2537.2,2537.1,0.7882]
[1750404275804,0.78822,2537.1,2537.0,3.99603]
[1750404276005,76.725,2537.3,2537.0,3.99603]
[1750404276006,45.39,2537.3,2537.2,2.80526771]
[1750404276212,76.705,2537.3,2537.2,2.80526771]
[1750404276411,77.49316,2537.3,2537.2,0.78819]
[1750404276712,0.78822,2537.1,2537.0,3.99603]
[1750404276901,25.50422,2537.1,2537.0,3.99605]
[1750404277098,25.50422,2537.1,2537.0,3.2078]
[1750404277511,0.78822,2537.1,2537.0,3.99605]
[1750404277723,7.38722,2537.1,2537.0,3.99603]
[1750404277925,32.10522,2537.1,2537.0,3.2078]
[1750404278127,0.78822,2537.1,2537.0,3.2078]
[1750404278324,32.10522,2537.1,2537.0,3.2078]
[1750404278921,0.78838,2536.6,2536.5,3.2078]
[1750404279225,32.09438,2536.6,2536.5,3.2078]
[1750404280012,1.97112,2536.4,2536.2,3.2078]
[1750404280217,25.51547,2536.3,2536.2,3.2078]
[1750404280424,25.51347,2536.3,2536.2,3.2078]
[1750404282620,0.78856,2536.0,2535.9,3.9964]
[1750404282826,32.09956,2536.0,2535.9,5.22487771]
[1750404283123,32.09956,2536.0,2535.9,3.2078]
[1750404285118,1.97161,2535.8,2535.5,3.2078]
[1750404285419,0.78869,2535.6,2535.5,6.01359771]
[1750404285624,0.78869,2535.6,2535.5,5.31472]
[1750404285824,32.09169,2535.6,2535.5,6.54307771]
[1750404286024,32.09169,2535.6,2535.5,7.33179771]
[1750404286527,0.78864,2535.8,2535.7,0.78863]
[1750404286729,32.08464,2535.8,2535.7,0.78863]
[1750404287331,0.78868,2535.7,2535.6,0.78867]
[1750404287821,0.78868,2535.7,2535.6,2.80574771]
[1750404288017,0.78865,2535.8,2535.7,0.78866]
[1750404288229,32.07765,2535.8,2535.7,2.80573771]
[1750404288425,0.78865,2535.8,2535.7,2.01707771]
[1750404288626,32.07765,2535.8,2535.7,2.01707771]
[1750404289329,0.78863,2535.8,2535.7,2.01707771]
[1750404289521,32.07463,2535.8,2535.7,2.01707771]
[1750404289723,32.07463,2535.8,2535.7,2.80571771]
[1750404290230,32.07463,2535.8,2535.7,2.01707771]
[1750404290623,32.07463,2535.8,2535.7,2.80573771]
[1750404290818,32.07463,2535.8,2535.6,0.78867]
[1750404290819,0.78869,2535.7,2535.6,0.78867]
[1750404291022,0.78869,2535.7,2535.6,2.14847]
[1750404291223,0.78869,2535.7,2535.6,4.16554771]
[1750404291625,31.286,2535.8,2535.7,0.78866]
[1750404291827,0.6327,2536.1,2535.9,0.78856]
[1750404292135,0.78853,2536.1,2536.0,2.01707771]
[1750404292339,0.78856,2536.0,2535.9,2.80566771]
[1750404293323,32.06755,2536.1,2536.0,0.78856]
[1750404293634,0.78852,2536.2,2536.1,0.78853]
[1750404293832,32.06152,2536.2,2536.1,6.01340771]
[1750404294032,32.06152,2536.2,2536.1,0.78853]
[1750404294626,0.78853,2536.1,2536.0,2.08004]
[1750404294933,25.45253,2536.1,2536.0,2.08004]
[1750404295124,25.45253,2536.1,2536.0,4.09711771]
[1750404295324,25.45253,2536.1,2536.0,2.01707771]
[1750404295537,0.78856,2536.0,2535.9,1.43587]
[1750404295925,0.78856,2536.0,2535.9,3.45294771]
[1750404296138,0.78856,2536.0,2535.9,2.80564771]
[1750404296331,0.78856,2536.0,2535.9,2.01707771]
[1750404296839,0.7886,2535.9,2535.8,4.6436]
[1750404297030,25.4376,2535.9,2535.8,4.6436]
[1750404297338,31.25,2535.9,2535.8,6.66070771]
[1750404297637,32.0386,2535.9,2535.8,6.66070771]
[1750404297830,32.0386,2535.9,2535.8,5.87207771]
[1750404298030,32.0386,2535.9,2535.8,5.22487771]
[1750404298437,32.0386,2535.9,2535.8,3.2078]
[1750404298632,0.78866,2535.7,2535.6,1.44758]
[1750404298838,32.02566,2535.7,2535.6,3.46465771]
[1750404299139,1.41149,2536.0,2535.9,0.7886]
[1750404299337,32.65249,2536.0,2535.9,0.7886]
[1750404299731,0.6229,2536.0,2535.9,0.7886]
[1750404299932,32.03056,2536.0,2535.9,2.80567771]
[1750404300546,46.0713,2536.3,2536.0,0.78856]
[1750404300734,6.602,2536.7,2536.6,0.78838]
[1750404301039,31.26,2536.7,2536.6,6.01325771]
[1750404301235,6.602,2536.7,2536.6,6.01325771]
[1750404301437,31.257,2536.7,2536.6,6.01325771]
[1750404301638,6.602,2536.7,2536.6,6.01325771]
[1750404302234,45.43,2537.2,2537.1,0.78822]
[1750404302436,76.681,2537.2,2537.1,0.78822]
[1750404302636,77.46919,2537.2,2537.1,0.78822]
[1750404302838,76.681,2537.2,2537.1,0.78822]
[1750404303034,76.681,2537.2,2537.0,0.78823]
[1750404303227,0.78823,2537.1,2537.0,2.01707771]
[1750404303432,45.43,2537.2,2536.8,0.6421]
[1750404303634,3.8539,2537.6,2537.1,2.01707771]
[1750404303842,32.04711,2537.5,2537.2,4.02777771]
[1750404304030,31.259,2537.5,2537.4,0.78813]
[1750404304343,32.0471,2537.5,2537.4,0.78813]
[1750404304545,3.8539,2537.6,2537.3,1.3781]
[1750404304842,3.2078,2537.6,2537.5,2.80517771]
[1750404305029,45.426,2537.8,2537.7,0.78804]
[1750404305439,76.64,2537.8,2537.7,3.99584]
[1750404305639,51.986,2537.8,2537.7,6.01291771]
[1750404305843,76.645,2537.8,2537.7,6.01291771]
[1750404306139,6.46303336,2538.4,2537.8,1.97002]
[1750404306439,31.215,2538.3,2538.2,2.01707771]
[1750404306646,32.00285,2538.3,2538.2,2.01707771]
[1750404306846,0.78788,2538.2,2538.1,0.78789]
[1750404307140,0.78791,2538.1,2538.0,3.2078]
[1750404307438,25.44391,2538.1,2538.0,6.01281771]
[1750404307745,24.656,2538.1,2538.0,6.01281771]
[1750404308344,0.78785,2538.4,2538.0,5.22487771]
[1750404308538,31.99985,2538.3,2538.2,0.78788]
[1750404308837,0.78784,2538.4,2538.2,0.78788]
[1750404309145,0.78784,2538.4,2538.3,2.80492771]
[1750404309334,3.8832,2538.5,2538.4,0.78782]
[1750404309639,3.8832,2538.5,2538.4,2.80489771]
[1750404309640,3.2078,2538.5,2538.4,2.80489771]
[1750404309830,3.2078,2538.5,2538.1,3.22046]
[1750404309831,46.20876,2538.6,2538.5,0.78779]
[1750404310032,0.78779,2538.5,2538.4,2.80487771]
[1750404310231,0.78782,2538.4,2538.3,2.01707771]
[1750404310432,0.78785,2538.3,2538.2,1.46347]
[1750404310647,25.42985,2538.3,2538.2,1.46347]
[1750404310947,25.42985,2538.3,2538.2,3.48054771]
[1750404311147,24.642,2538.3,2538.2,3.48054771]
[1750404311348,0.78785,2538.3,2538.2,2.69267771]
[1750404311535,31.97885,2538.3,2538.2,3.48055771]
[1750404311940,31.191,2538.3,2538.2,1.46348]
[1750404312244,31.191,2538.3,2538.2,3.48055771]
[1750404312647,0.78785,2538.3,2538.2,3.48055771]
[1750404312849,31.97585,2538.3,2538.2,3.48055771]
[1750404313348,31.97585,2538.3,2538.2,2.69267771]
[1750404314042,0.78785,2538.3,2538.2,2.69267771]
[1750404314250,31.96685,2538.3,2538.2,2.69267771]
[1750404314546,31.96685,2538.3,2538.2,3.48055771]
[1750404314948,0.78785,2538.3,2538.2,3.48055771]
[1750404315139,31.95185,2538.3,2538.2,3.48055771]
[1750404315540,0.78785,2538.3,2538.2,3.48055771]
[1750404315942,31.93985,2538.3,2538.2,3.48055771]
[1750404316142,31.93985,2538.3,2538.2,2.69267771]
[1750404316343,31.93985,2538.3,2538.2,3.48055771]
[1750404316851,31.93985,2538.3,2538.2,2.69267771]
[1750404317047,0.78791,2538.1,2538.0,3.2078]
[1750404317345,0.78797,2537.9,2537.8,1.44471]
[1750404317652,0.78791,2538.2,2538.1,0.78789]
[1750404317948,31.93391,2538.2,2538.1,2.80496771]
[1750404318143,31.93391,2538.2,2538.1,2.01707771]
[1750404318350,31.93391,2538.2,2538.1,2.80498771]
[1750404318744,31.93391,2538.2,2538.1,2.01707771]
[1750404319954,31.98724781,2538.2,2538.1,6.01278771]
[1750404320154,31.98724781,2538.2,2538.1,5.22487771]
[1750404320340,31.98724781,2538.2,2538.1,6.01278771]
[1750404320747,31.98724781,2538.2,2538.1,5.22487771]
[1750404321449,31.98724781,2538.2,2538.1,2.01707771]
[1750404321966,31.98424781,2538.2,2538.1,2.01707771]
[1750404322545,0.78797,2537.9,2537.8,3.8645]
[1750404323057,0.78797,2537.9,2537.8,5.88157771]
[1750404323551,0.78797,2537.9,2537.8,5.22487771]
[1750404323943,0.78797,2537.9,2537.5,0.6588]
[1750404323944,0.78807,2537.6,2537.5,0.6588]
[1750404324150,0.78807,2537.6,2537.0,3.99604]
[1750404324151,1.97027,2537.5,2537.0,3.99604]
[1750404324345,0.6533,2537.8,2537.5,2.01707771]
[1750404324346,2.62334,2537.8,2537.5,2.01707771]
[1750404324659,0.78807,2537.6,2537.5,2.01707771]
[1750404324961,0.78816,2537.3,2537.2,0.78817]
[1750404325149,25.35116,2537.3,2537.2,0.78817]
[1750404325352,24.563,2537.3,2537.2,2.80524771]
[1750404326049,0.78809,2537.6,2537.5,0.7881]
[1750404326249,31.90209,2537.6,2537.5,2.01707771]
[1750404326445,31.90209,2537.6,2537.5,2.80517771]
[1750404326659,31.90209,2537.6,2537.5,2.01707771]
[1750404326859,31.90209,2537.6,2537.5,2.80517771]
[1750404327050,7.34409,2537.6,2537.5,2.80517771]
[1750404327250,7.34409,2537.6,2537.5,2.01707771]
[1750404327251,31.90409,2537.6,2537.5,2.01707771]
[1750404327757,0.78809,2537.6,2537.5,2.01707771]
[1750404327955,31.90409,2537.6,2537.5,2.80517771]
[1750404328159,31.90409,2537.6,2537.5,2.01707771]
[1750404328356,0.78809,2537.6,2537.5,2.80517771]
[1750404329450,0.78809,2537.6,2537.5,0.7881]
[1750404330554,0.78809,2537.6,2537.5,2.80517771]
[1750404330860,0.78809,2537.6,2537.5,0.7881]
[1750404331061,0.7881,2537.5,2537.4,3.99592]
[1750404331256,25.3361,2537.5,2537.4,3.99592]
[1750404331453,25.3361,2537.5,2537.4,5.22487771]
[1750404331759,25.3361,2537.5,2537.4,6.01300771]
[1750404332259,25.3361,2537.5,2537.4,5.22487771]
[1750404332459,25.3361,2537.5,2537.4,6.01300771]
[1750404332656,25.3361,2537.5,2537.4,5.22487771]
[1750404332859,0.78816,2537.3,2537.2,1.3663]
[1750404333059,0.78819,2537.2,2537.1,3.2078]
[1750404333355,1.97056,2537.1,2536.6,0.78836]
[1750404333559,0.78837,2536.7,2536.6,3.2078]
[1750404333747,25.33537,2536.7,2536.6,3.2078]
[1750404333961,25.33537,2536.7,2536.6,5.22487771]
[1750404334153,0.78833,2536.8,2536.6,2.01707771]
[1750404334460,31.1,2536.7,2536.6,0.78838]
[1750404334649,3.2078,2536.9,2536.6,3.98800771]
[1750404334852,6.556,2536.9,2536.8,2.80539771]
[1750404335160,31.109,2537.1,2537.0,0.78825]
[1750404335458,31.109,2537.1,2537.0,2.80532771]
[1750404335758,6.511,2537.5,2537.3,0.78813]
[1750404335946,0.78807,2537.7,2537.6,0.78807]
[1750404336151,31.86307,2537.7,2537.6,0.78807]
[1750404336348,3.2078,2538.0,2537.9,0.78797]
[1750404336561,51.915,2538.2,2538.1,0.78791]
[1750404336752,77.27091,2538.2,2538.1,2.01707771]
[1750404337662,0.78793,2538.1,2537.6,1.97016]
[1750404337862,0.78793,2538.1,2538.0,0.78792]
[1750404338063,0.78793,2538.1,2538.0,2.01707771]
[1750404338863,52.7029,2538.2,2538.0,2.01707771]
[1750404339059,52.7029,2538.2,2538.1,2.80498771]
[1750404339560,76.486,2538.2,2538.1,2.80498771]
[1750404340462,46.19188,2538.2,2538.1,2.01707771]
[1750404340664,77.26488,2538.2,2538.1,2.01707771]
[1750404340868,52.70288,2538.2,2538.1,2.80498771]
[1750404341161,76.463,2538.2,2538.1,2.80498771]
[1750404341363,76.465,2538.2,2538.1,2.80498771]
[1750404341562,77.25288,2538.2,2538.1,2.80498771]
[1750404341963,76.465,2538.2,2538.1,2.80498771]
[1750404342568,76.464,2538.2,2538.1,2.80498771]
[1750404342759,77.25188,2538.2,2538.1,2.80498771]
[1750404343056,76.464,2538.2,2538.1,2.80498771]
[1750404343561,3.2078,2538.3,2538.1,2.80498771]
[1750404343752,3.2078,2538.3,2538.2,2.80495771]
[1750404344558,3.2078,2538.6,2538.5,0.78779]
[1750404344755,7.29772,2538.8,2538.5,2.80486771]
[1750404344962,6.51,2538.8,2538.7,2.80479771]
[1750404345260,31.058,2538.8,2538.7,2.80479771]
[1750404345656,31.063,2538.8,2538.7,2.80479771]
[1750404345857,3.2078,2538.9,2538.8,0.78769]
[1750404346056,3.2078,2538.9,2538.8,2.80476771]
[1750404346562,0.78762,2539.1,2539.0,0.78763]
[1750404346764,25.33762,2539.1,2539.0,2.01707771]
[1750404347164,1.9691,2539.0,2538.5,3.2078]
[1750404347467,0.78769,2538.8,2538.7,2.01707771]
[1750404347654,7.29669,2538.8,2538.7,2.01707771]
[1750404347861,0.78776,2538.7,2538.6,0.78775]
[1750404348062,25.33376,2538.7,2538.6,0.78775]
[1750404348366,25.33376,2538.7,2538.2,2.63095]
[1750404348367,0.78785,2538.3,2538.2,0.6613]
[1750404348562,0.78782,2538.4,2538.3,2.01707771]
[1750404348770,31.052,2538.4,2538.3,0.78785]
[1750404348964,0.78782,2538.4,2538.3,2.01707771]
[1750404349160,31.84782,2538.4,2538.3,2.01707771]
[1750404349467,0.78794,2538.0,2537.9,1.2461]
[1750404349667,0.78794,2538.0,2537.9,2.03405]
[1750404349971,0.78794,2538.0,2537.9,3.26317771]
[1750404349972,10.50474,2538.0,2537.9,3.26317771]
[1750404350265,0.78807,2537.6,2537.5,1.2956]
[1750404350461,0.78807,2537.6,2537.5,0.6232]
[1750404350666,0.78809,2537.6,2537.5,2.01707771]
[1750404350867,31.84909,2537.6,2537.5,4.16707771]
[1750404351768,31.84909,2537.6,2537.5,3.37897771]
[1750404351965,6.509,2538.1,2537.5,14.84201107]
[1750404352164,31.84393,2538.1,2538.0,2.01707771]
[1750404352368,39.48882336,2538.1,2537.8,2.01707771]
[1750404352573,3.99577,2537.9,2537.8,2.01707771]
[1750404352869,0.78807,2537.6,2537.5,0.78809]
[1750404353069,0.78807,2537.6,2537.5,1.3496]
[1750404353272,0.78807,2537.6,2537.5,4.15476771]
[1750404353569,0.78807,2537.6,2537.5,2.80516771]
[1750404353772,0.78807,2537.6,2537.5,2.01707771]
[1750404353973,0.78807,2537.6,2537.5,2.80516771]
[1750404355365,31.89005,2537.7,2537.6,0.78806]
[1750404355670,31.89005,2537.7,2537.6,2.80513771]
[1750404355867,31.89005,2537.7,2537.6,0.78806]
[1750404356675,0.78805,2537.7,2537.6,0.78806]
[1750404356875,31.87705,2537.7,2537.6,0.78806]
[1750404357079,31.86305,2537.7,2537.6,0.78806]
[1750404357680,0.78798,2537.9,2537.8,0.788]
[1750404357882,31.85898,2537.9,2537.8,2.80507771]
[1750404358079,6.509,2538.1,2537.9,0.78797]
[1750404358269,3.2078,2538.2,2538.1,2.80498771]
[1750404358580,27.7948,2538.2,2538.1,2.80498771]
[1750404358977,6.509,2538.4,2538.3,0.78785]
[1750404359177,31.094,2538.4,2538.3,2.80492771]
[1750404359483,3.2078,2538.5,2538.4,0.78781]
[1750404359681,28.58258,2538.5,2538.4,2.80488771]
[1750404360585,3.99558,2538.5,2538.4,2.01707771]
[1750404360775,28.58858,2538.5,2538.4,2.80488771]
[1750404360975,0.78788,2538.3,2538.2,0.78786]
[1750404361278,0.78788,2538.3,2538.2,2.80493771]
[1750404361478,0.78788,2538.3,2538.2,0.78786]
[1750404361775,0.78792,2538.2,2538.1,0.78789]
[1750404361976,40.76683336,2538.2,2538.1,2.01707771]
[1750404362181,42.73656336,2538.2,2537.8,0.6569]
[1750404362383,0.78791,2538.1,2538.0,2.01707771]
[1750404362576,1.41771,2538.1,2538.0,2.01707771]
[1750404362777,1.41771,2538.1,2538.0,0.78794]
[1750404362980,0.78797,2538.0,2537.9,0.78795]
[1750404363383,0.78797,2538.0,2537.9,2.80502771]
[1750404363586,31.095,2538.0,2537.9,2.80504771]
[1750404363779,31.095,2538.0,2537.9,4.05644771]
[1750404364182,31.88294,2538.0,2537.9,4.05644771]
[1750404364881,31.88294,2538.0,2537.9,2.80504771]
[1750404365383,24.578,2538.0,2537.9,2.80504771]
[1750404365585,25.43527781,2538.0,2537.9,4.05644771]
[1750404365782,25.43527781,2538.0,2537.9,2.80504771]
[1750404366580,25.43527781,2538.0,2537.9,4.04874771]
[1750404367884,24.64733781,2538.0,2537.9,4.04874771]
[1750404368086,7.81e-06,2538.0,2537.9,15.51178107]
[1750404368286,0.78769,2538.8,2538.7,0.78769]
[1750404368587,0.78769,2538.8,2538.7,2.8047599]
[1750404368988,24.618,2538.8,2538.7,2.0170699]
[1750404369190,25.40569,2538.8,2538.7,2.8047899]
[1750404369391,25.40269,2538.8,2538.7,2.8047899]
[1750404369692,0.78769,2538.8,2538.7,2.8047899]
[1750404369892,25.40069,2538.8,2538.7,2.8047899]
[1750404370387,7.31267,2538.9,2538.8,0.78769]
[1750404370585,3.8762,2539.1,2539.0,0.78763]
[1750404370586,9.7328,2539.1,2539.0,0.78763]
[1750404370786,0.78763,2539.0,2538.9,2.8047099]
[1750404370984,0.78772,2538.8,2538.6,2.5227]
[1750404371190,0.78766,2538.9,2538.8,2.0170699]
[1750404371386,31.91266,2538.9,2538.8,2.0170699]
[1750404371583,31.122,2538.9,2538.8,2.8047599]
[1750404371793,31.90966,2538.9,2538.8,2.8047599]
[1750404372996,31.90566,2538.9,2538.8,2.8047599]
[1750404379692,0.78773,2538.8,2538.7,0.78769]
[1750404379891,3.99553,2538.8,2538.7,2.0170699]
[1750404380598,0.78773,2538.8,2538.7,2.0170699]
[1750404380796,0.78773,2538.8,2538.7,2.8047899]
[1750404380994,31.91101781,2538.9,2538.8,0.78769]
[1750404381195,31.91101781,2538.9,2538.8,2.8047599]
[1750404381395,31.90101781,2538.9,2538.8,0.78769]
[1750404381694,31.89901781,2538.9,2538.8,0.78769]
[1750404382091,31.89701781,2538.9,2538.8,2.8047599]
[1750404383298,6.59333781,2538.9,2538.8,2.8047599]
[1750404383601,31.10433781,2538.9,2538.8,2.8047599]
[1750404383894,0.06933781,2538.9,2538.8,2.8047599]
[1750404385092,0.06933781,2538.9,2538.8,4.0773599]
[1750404385897,24.55633781,2538.9,2538.8,4.0773599]
[1750404386396,0.06933781,2538.9,2538.8,4.0773599]
[1750404387094,0.78778,2538.6,2538.4,4.5032]
[1750404387296,0.78778,2538.6,2538.2,1.96968]
[1750404387297,30.94203336,2538.5,2538.2,2.3233927]
[1750404387494,25.26681,2538.5,2538.4,0.78781]
[1750404387792,25.26681,2538.5,2538.4,2.8048799]
[1750404388502,24.479,2538.5,2538.2,2.15876]
[1750404388692,0.78788,2538.2,2538.1,3.2078]
[1750404388887,31.79188,2538.2,2538.1,5.2248699]
[1750404389092,31.79188,2538.2,2538.1,6.0127799]
[1750404389296,31.004,2538.2,2538.1,6.0127799]
[1750404389498,31.79188,2538.2,2538.1,6.0127799]
[1750404389698,31.004,2538.2,2538.1,6.0127799]
[1750404389899,31.79188,2538.2,2538.1,6.0127799]
[1750404390397,31.004,2538.2,2538.1,6.0127799]
[1750404390598,31.79188,2538.2,2538.1,6.0127799]
[1750404390797,31.004,2538.2,2538.1,6.0127799]
[1750404391001,31.79188,2538.2,2538.1,6.0127799]
[1750404391187,31.004,2538.2,2538.1,6.0127799]
[1750404391501,0.78783,2538.5,2538.4,0.78779]
[1750404391696,3.8321,2538.7,2538.4,2.0170699]
[1750404391996,3.2078,2538.7,2538.6,2.8048199]
[1750404392300,24.55833781,2538.9,2538.8,0.78769]
[1750404392498,24.55833781,2538.9,2538.8,2.8047599]
[1750404392692,0.06933781,2538.9,2538.8,2.8047599]
[1750404392890,24.56033781,2538.9,2538.8,4.1708599]
[1750404393302,0.06933781,2538.9,2538.8,4.1708599]
[1750404395100,31.007,2539.0,2538.9,0.78766]
[1750404395304,31.007,2539.0,2538.9,4.1606299]
[1750404395502,31.79463,2539.0,2538.9,4.1606299]
[1750404396099,31.79463,2539.0,2538.9,2.8047299]
[1750404396497,0.4687,2539.1,2539.0,0.78763]
[1750404396691,0.4687,2539.1,2539.0,4.1263999]
[1750404396896,24.465,2539.3,2539.2,0.78757]
[1750404397098,24.465,2539.3,2539.2,2.8046399]
[1750404397796,0.7875,2539.4,2539.3,0.7875]
[1750404397997,31.7195,2539.4,2539.3,2.8045699]
[1750404398708,30.931,2539.4,2539.3,2.8045699]